bitfinex/quotes_ETHUSD_20250802
["timestamp","ask_amount","ask_price","bid_price","bid_amount"]
[1754178028397,0.8878,3410.2,3408.9,0.02933497]
[1754178028599,0.4692,3410.2,3408.9,0.905]
[1754178028779,0.4692,3410.2,3409.0,0.4762]
[1754178029498,0.4186,3410.1,3409.0,0.4762]
[1754178030718,0.4186,3410.1,3409.1,0.4762]
[1754178030886,4.803,3411.2,3409.1,0.4762]
[1754178031093,0.4692,3410.5,3409.2,0.50553239]
[1754178031295,4.793,3411.2,3409.2,3.93433239]
[1754178031501,0.15314421,3411.3,3409.4,3.55]
[1754178031703,0.15314421,3411.3,3410.3,3.0]
[1754178031906,0.15314421,3411.3,3410.5,0.55]
[1754178032108,0.15314421,3411.3,3410.7,3.48194945]
[1754178032324,0.15314421,3411.3,3410.8,3.02931863]
[1754178032474,0.15314421,3411.3,3410.9,0.55]
[1754178032678,0.4692,3413.6,3411.6,2.93110339]
[1754178032913,7.5212,3414.2,3411.9,3.0]
[1754178033077,0.8878,3414.1,3412.0,1.48430832]
[1754178033277,1.47394069,3414.0,3412.1,0.4762]
[1754178033485,0.8878,3413.9,3412.2,0.0293066]
[1754178033819,0.8878,3413.9,3412.1,3.4762]
[1754178034110,0.8878,3413.8,3412.1,3.4762]
[1754178034313,0.8878,3413.8,3412.3,0.55]
[1754178034314,0.14739407,3413.7,3412.3,0.55]
[1754178034611,0.1464,3413.6,3413.1,0.1464]
[1754178034815,0.4692,3414.1,3412.9,0.4762]
[1754178035519,0.1474,3413.9,3413.4,0.1464]
[1754178035705,0.4692,3413.8,3413.4,0.1464]
[1754178036029,0.1464,3413.6,3413.1,0.1464]
[1754178036226,0.8878,3413.5,3413.0,0.1464]
[1754178036526,0.1464,3413.0,3412.5,0.1464]
[1754178036693,0.8878,3412.9,3411.6,0.36852036]
[1754178036895,0.001,3413.9,3411.2,5.2228]
[1754178036896,0.1464,3412.7,3411.2,5.2228]
[1754178037106,0.8878,3412.6,3412.3,0.1464]
[1754178037279,0.1464,3412.7,3412.3,0.1464]
[1754178037484,4.794,3413.6,3411.3,0.5699]
[1754178037485,0.1464,3412.5,3412.0,0.1464]
[1754178037985,0.1464,3412.6,3412.0,0.1464]
[1754178038217,0.4692,3413.0,3412.1,0.02930746]
[1754178038426,0.6156,3413.0,3412.5,0.1464]
[1754178038721,0.1464,3412.7,3412.2,0.1464]
[1754178039021,0.1464,3412.7,3411.2,0.37043013]
[1754178039022,0.8878,3412.6,3411.2,0.21834656]
[1754178039186,4.79,3413.6,3411.3,0.1464]
[1754178039187,0.1464,3411.7,3411.3,0.1464]
[1754178039920,0.6156,3411.7,3411.3,0.1464]
[1754178040120,0.1464,3411.7,3411.3,0.1464]
[1754178040915,0.8878,3411.6,3411.3,0.1464]
[1754178041218,0.1464,3411.7,3411.3,0.1464]
[1754178041444,0.8878,3411.5,3411.2,0.22032793]
[1754178041647,0.1464,3411.4,3411.2,0.22032793]
[1754178041845,0.1464,3411.4,3410.9,0.1464]
[1754178042010,0.4692,3412.2,3411.0,0.93431691]
[1754178042211,0.4692,3412.6,3411.1,0.4762]
[1754178042444,0.1464,3412.5,3412.0,0.1464]
[1754178042650,10.052,3414.2,3412.1,0.4762]
[1754178042651,0.4692,3413.0,3412.1,0.4762]
[1754178042849,0.8878,3413.4,3412.1,0.4762]
[1754178043212,0.4692,3413.4,3412.1,0.50550746]
[1754178043411,0.4692,3413.4,3412.2,0.0293066]
[1754178043652,7.4706,3414.2,3412.4,0.55]
[1754178043953,7.4706,3414.2,3412.3,0.93430574]
[1754178043954,7.052,3414.2,3412.5,0.14843057]
[1754178044135,0.4692,3414.0,3412.6,0.02930317]
[1754178044333,0.4692,3414.0,3412.6,0.93430317]
[1754178044534,0.4692,3414.0,3412.6,0.45810317]
[1754178044736,7.052,3414.2,3412.6,0.45810317]
[1754178044737,7.052,3414.2,3412.7,0.905]
[1754178044913,7.052,3414.2,3412.8,0.02930145]
[1754178045114,7.052,3414.2,3412.9,0.4762]
[1754178045348,7.052,3414.2,3413.0,0.02929973]
[1754178046037,7.052,3414.2,3413.1,0.4762]
[1754178046516,0.001,3414.3,3413.2,1.00809801]
[1754178046743,0.001,3414.3,3413.3,0.17080096]
[1754178046948,0.001,3414.3,3413.3,1.07580096]
[1754178047322,0.001,3414.3,3413.4,0.4762]
[1754178047735,0.001,3414.3,3413.5,0.45809544]
[1754178048265,0.001,3414.3,3413.6,0.905]
[1754178048471,0.001,3414.3,3413.7,0.02929372]
[1754178048612,0.001,3414.3,3413.7,0.905]
[1754178048813,0.001,3414.3,3413.8,0.4762]
[1754178049226,0.001,3414.3,3413.8,0.905]
[1754178050857,0.001,3414.3,3413.8,1.05111948]
[1754178051568,0.001,3414.3,3413.8,1.60111948]
[1754178051730,0.001,3414.3,3413.9,0.55]
[1754178052078,0.001,3414.3,3414.2,6.47894382]
[1754178052230,0.15173922,3415.0,3414.3,3.55]
[1754178052429,0.15173922,3415.0,3414.5,3.55]
[1754178052690,0.15173922,3415.0,3414.7,0.55]
[1754178052828,0.15173922,3415.0,3414.9,0.55]
[1754178053029,0.15173922,3415.0,3414.9,1.4918]
[1754178053430,0.15173922,3415.0,3414.9,1.6382]
[1754178055037,0.15173922,3415.0,3414.9,1.85270249]
[1754178055441,0.15173922,3415.0,3414.9,9.63470249]
[1754178055640,0.15173922,3415.0,3414.9,10.6518456]
[1754178056733,0.15173922,3415.0,3414.9,10.1018456]
[1754178056940,7.044,3416.9,3415.0,6.47823643]
[1754178057161,0.001,3415.4,3415.2,0.55]
[1754178057473,0.001,3415.4,3415.3,4.39098]
[1754178058174,0.001,3415.4,3415.3,0.96796]
[1754178058336,0.001,3415.4,3415.3,1.42026]
[1754178058547,0.001,3415.4,3415.3,1.88536]
[1754178059199,0.001,3415.4,3415.3,2.43536]
[1754178059556,0.001,3415.4,3415.3,2.40608]
[1754178059976,0.15033423,3418.7,3415.5,3.55]
[1754178060250,0.4651,3417.8,3415.7,3.0]
[1754178060384,0.4651,3417.8,3415.8,0.02927571]
[1754178060578,0.4186,3417.7,3415.8,0.51877571]
[1754178060892,0.4186,3417.7,3415.9,0.93526117]
[1754178061188,0.4651,3417.6,3416.0,0.029274]
[1754178061389,0.4651,3417.6,3416.1,0.4895]
[1754178061590,0.4651,3417.6,3416.3,3.0]
[1754178061795,0.4186,3417.5,3416.4,0.02927057]
[1754178061981,0.4186,3417.5,3416.4,0.85934763]
[1754178062161,0.4651,3417.4,3416.4,0.85934763]
[1754178062359,0.4651,3417.4,3416.5,0.4895]
[1754178062556,0.8837,3417.9,3416.5,0.4895]
[1754178062791,0.8837,3417.9,3416.6,0.02926886]
[1754178062962,0.8837,3417.9,3416.6,0.56808679]
[1754178063164,0.8837,3418.3,3416.8,0.55]
[1754178063410,0.15033423,3418.7,3417.1,0.55]
[1754178063411,0.56893423,3418.7,3417.1,0.55]
[1754178063622,0.56893423,3418.7,3417.0,5.92648085]
[1754178063623,0.56893423,3418.7,3417.3,0.55]
[1754178063760,0.56893423,3418.7,3417.4,0.4895]
[1754178063961,0.56893423,3418.7,3417.6,3.0]
[1754178064501,0.56893423,3418.7,3417.6,3.4895]
[1754178064705,0.15033423,3418.7,3417.7,0.51875944]
[1754178064864,0.15033423,3418.7,3417.8,0.87510594]
[1754178065215,0.15033423,3418.7,3417.9,0.51875773]
[1754178065719,0.15033423,3418.7,3417.9,0.97105773]
[1754178065879,0.15033423,3418.7,3418.0,1.0395]
[1754178066063,0.10033423,3418.7,3418.1,0.02925601]
[1754178066385,0.14892924,3422.5,3419.4,2.92448967]
[1754178066625,0.14892924,3422.5,3421.6,7.59354205]
[1754178066911,0.14892924,3422.5,3422.4,0.1464]
[1754178067378,0.14892924,3422.5,3422.4,1.11741926]
[1754178067576,0.14892924,3422.5,3422.4,1.81707163]
[1754178067810,0.00244301,3422.5,3422.4,20.5414068]
[1754178068031,0.00244301,3422.5,3422.4,23.50205847]
[1754178068325,0.4651,3424.5,3422.5,3.0]
[1754178068489,0.4651,3424.5,3422.8,0.55]
[1754178068682,0.4651,3424.5,3422.6,1.4918]
[1754178068683,0.4651,3424.5,3422.7,0.5792167]
[1754178068888,0.4651,3424.5,3422.9,0.4895]
[1754178069074,0.4651,3424.5,3423.1,3.0]
[1754178069276,0.4651,3424.5,3422.6,0.4523]
[1754178069277,0.4186,3424.4,3422.4,0.71276699]
[1754178069532,0.4186,3424.4,3422.4,0.22326699]
[1754178069681,0.4651,3424.3,3422.1,0.02922182]
[1754178070077,0.4186,3424.2,3422.1,0.02922182]
[1754178070321,0.4186,3424.2,3422.2,0.4895]
[1754178070506,0.4651,3424.1,3422.1,0.21953159]
[1754178070819,5.5476,3424.0,3422.1,0.22399209]
[1754178071027,8.51497,3423.9,3421.4,0.55]
[1754178071179,0.1,3425.4,3421.4,0.55]
[1754178071180,0.8837,3423.8,3422.2,0.55]
[1754178071375,0.4651,3423.8,3422.3,0.9418]
[1754178071586,0.4651,3423.8,3422.4,1.97569926]
[1754178071785,0.4186,3423.7,3422.1,0.2202567]
[1754178072024,0.4186,3423.7,3421.9,5.128]
[1754178072226,0.4651,3423.6,3421.7,0.4895]
[1754178072431,0.4186,3423.5,3421.7,0.4895]
[1754178072581,0.4186,3423.5,3421.7,0.22467326]
[1754178072785,0.4651,3423.4,3421.4,3.0]
[1754178072986,0.4186,3423.3,3421.7,0.878281]
[1754178073431,0.4651,3423.2,3421.7,0.90750623]
[1754178074232,0.4651,3423.2,3421.8,0.9418]
[1754178074524,0.4651,3423.2,3421.9,0.20733329]
[1754178074728,0.4651,3423.2,3421.8,0.9418]
[1754178075291,0.4186,3424.5,3422.1,0.55]
[1754178075517,0.4186,3424.5,3422.3,3.55]
[1754178075518,0.4651,3424.4,3422.3,3.55]
[1754178075718,0.4651,3424.4,3422.5,0.55]
[1754178076036,0.4651,3424.4,3422.6,0.9418]
[1754178076191,0.4651,3424.4,3422.7,0.15170193]
[1754178076391,0.4186,3424.3,3422.7,0.0292167]
[1754178076653,0.4186,3424.3,3421.4,0.90698]
[1754178076654,30.0,3424.1,3418.9,2.92491491]
[1754178076793,30.55,3423.9,3421.7,0.22402671]
[1754178077135,0.8837,3424.0,3420.0,0.4523]
[1754178077136,5.127,3423.8,3421.3,0.878512]
[1754178077543,6.0097,3423.7,3421.4,0.0292278]
[1754178077702,1.48467,3423.6,3421.3,0.90774065]
[1754178077887,0.1464,3422.5,3422.0,0.1464]
[1754178078087,0.4651,3422.4,3422.0,0.1464]
[1754178078302,0.1464,3422.5,3422.0,0.1464]
[1754178078303,0.8837,3422.3,3422.0,0.1464]
[1754178078501,0.4651,3422.2,3422.0,0.1464]
[1754178079134,0.8837,3422.1,3421.7,0.21517535]
[1754178079328,1.0301,3422.1,3421.6,0.1464]
[1754178079548,0.8837,3422.0,3421.6,0.1464]
[1754178079937,0.4651,3421.9,3421.6,0.1464]
[1754178080460,0.4651,3421.9,3419.7,0.4895]
[1754178080461,0.4186,3421.8,3419.7,0.4895]
[1754178080630,0.4186,3421.8,3420.1,0.4651]
[1754178080631,0.1464,3421.3,3420.1,0.4651]
[1754178080831,3.0,3423.0,3420.1,0.4651]
[1754178080832,0.1464,3422.1,3421.6,0.1464]
[1754178081058,0.4651,3422.8,3422.2,0.1464]
[1754178081259,0.1464,3422.3,3421.8,0.1464]
[1754178081420,0.1464,3422.1,3421.6,0.1464]
[1754178081761,0.8837,3422.0,3421.6,0.36034653]
[1754178081968,0.4541,3421.9,3421.6,0.1464]
[1754178082421,0.8727,3421.8,3421.6,0.1464]
[1754178082617,0.8727,3421.7,3421.6,0.1464]
[1754178083136,0.8727,3421.7,3420.2,0.16012306]
[1754178083335,0.1464,3420.8,3420.4,0.1464]
[1754178083921,0.36714461,3422.2,3420.4,0.22386487]
[1754178083922,0.4541,3420.7,3420.4,0.22386487]
[1754178084245,0.8727,3420.6,3419.7,0.4651]
[1754178084447,5.118,3420.8,3419.9,0.21903371]
[1754178084760,0.4541,3420.5,3418.7,0.4997]
[1754178084959,0.4541,3420.5,3419.4,0.4651]
[1754178084960,0.4186,3420.4,3419.4,0.4651]
[1754178085129,0.4186,3420.4,3418.7,0.7213687]
[1754178085466,0.4541,3420.3,3418.7,1.2210687]
[1754178085669,0.4541,3420.3,3418.8,0.16065137]
[1754178086442,5.5681,3420.3,3418.8,0.16065137]
[1754178086655,1.23984461,3420.2,3418.8,0.16065137]
[1754178086858,0.8727,3420.1,3418.1,0.18990738]
[1754178087028,0.4541,3420.0,3418.2,0.66035137]
[1754178087230,0.4186,3419.9,3418.3,0.16065137]
[1754178087431,7.4456,3419.9,3418.2,0.37511776]
[1754178087643,0.4541,3419.8,3418.2,0.21446639]
[1754178087963,0.4186,3419.7,3418.1,0.4997]
[1754178088128,5.5366,3419.7,3418.1,0.4997]
[1754178088326,5.5366,3419.7,3418.0,0.16065137]
[1754178088665,5.5366,3419.7,3418.0,0.38115628]
[1754178088666,0.8727,3419.6,3418.0,0.38115628]
[1754178088965,0.4541,3419.5,3418.0,0.16065137]
[1754178089366,0.4541,3419.5,3418.1,0.16065137]
[1754178089527,1.01767,3419.4,3418.0,0.16065137]
[1754178089728,0.8727,3419.3,3418.1,0.16065137]
[1754178089925,0.8727,3419.3,3417.5,1.03992337]
[1754178090156,1.019877,3419.2,3417.6,0.16065137]
[1754178090466,0.8727,3419.1,3417.7,0.16065137]
[1754178090769,0.4541,3419.1,3417.8,0.18990995]
[1754178090931,5.5611,3419.1,3417.9,0.16065137]
[1754178091262,0.8727,3419.0,3418.0,0.16065137]
[1754178091428,1.05207,3418.9,3418.1,0.16065137]
[1754178091630,1.47067,3418.9,3418.2,0.16065137]
[1754178091830,0.4541,3418.8,3417.3,0.16065137]
[1754178092042,0.4541,3418.8,3417.4,0.16065137]
[1754178092361,0.4186,3418.7,3417.5,0.16065137]
[1754178092541,0.565667,3418.7,3417.6,0.16065137]
[1754178092735,0.4541,3418.6,3417.7,0.16065137]
[1754178092937,0.4541,3418.6,3417.8,0.16065137]
[1754178093143,0.4541,3419.1,3417.9,0.1899091]
[1754178093464,0.4541,3419.1,3418.0,0.16065137]
[1754178093625,0.4541,3419.1,3418.1,0.16065137]
[1754178093825,0.4541,3419.1,3418.2,0.16065137]
[1754178094025,0.6005,3419.1,3418.6,0.1464]
[1754178094372,0.6005,3419.1,3418.4,0.16065137]
[1754178094373,0.4541,3419.1,3418.4,0.16065137]
[1754178094553,0.1464,3418.9,3418.5,0.16065137]
[1754178094756,0.4541,3418.8,3418.6,0.16065137]
[1754178094953,0.1464,3418.9,3418.7,0.16065137]
[1754178095157,5.097,3419.3,3418.8,0.16065137]
[1754178095469,5.097,3419.3,3417.5,0.16065137]
[1754178095470,0.1464,3418.5,3417.5,0.16065137]
[1754178095669,0.8727,3418.4,3417.6,0.16065137]
[1754178095854,0.1464,3417.8,3417.7,0.16065137]
[1754178096436,0.8727,3417.8,3417.4,0.16065137]
[1754178096742,0.4186,3418.2,3417.5,0.16065137]
[1754178096934,5.095,3417.9,3416.9,0.66035137]
[1754178097134,5.095,3417.9,3417.0,0.16065137]
[1754178097362,5.095,3417.9,3417.1,0.16065137]
[1754178097560,0.8727,3418.2,3417.0,0.16065137]
[1754178097800,7.03,3418.5,3417.0,0.16065137]
[1754178097801,5.092,3418.1,3417.1,0.8078687]
[1754178097964,5.092,3418.1,3417.2,0.16065137]
[1754178098972,0.4541,3418.0,3417.1,0.16065137]
[1754178099154,0.59647,3417.9,3416.9,0.38539483]
[1754178099345,0.59647,3417.9,3417.0,0.16065137]
[1754178099542,0.59647,3417.9,3416.8,0.59797]
[1754178099543,0.4541,3417.8,3417.1,0.16065137]
[1754178099766,0.4541,3417.8,3416.5,0.16065137]
[1754178099933,0.146917,3417.7,3416.8,0.220435]
[1754178100129,0.146917,3417.7,3416.7,0.59797]
[1754178100744,7.4841,3418.5,3416.8,0.96376715]
[1754178100945,30.0,3418.3,3413.9,7.033]
[1754178101239,0.55,3418.1,3414.3,3.0]
[1754178101483,0.8727,3418.0,3414.6,3.0]
[1754178101658,0.8727,3417.9,3414.7,0.96378514]
[1754178101848,6.0797,3417.8,3415.4,0.879937]
[1754178102170,1.48067,3417.7,3415.5,0.96377829]
[1754178102470,0.8727,3417.6,3415.6,0.4997]
[1754178102687,0.8727,3417.5,3415.6,0.4997]
[1754178102833,0.148067,3417.4,3415.6,0.4997]
[1754178103175,0.8727,3417.3,3415.6,0.4997]
[1754178103475,6.0727,3417.2,3415.7,0.02927657]
[1754178103668,6.0727,3417.2,3415.3,0.879952]
[1754178103669,0.8727,3417.2,3415.8,0.4997]
[1754178103980,5.197,3417.1,3415.8,0.9345]
[1754178104146,5.197,3417.1,3415.9,0.4997]
[1754178104534,0.4186,3417.6,3415.9,0.4997]
[1754178104740,5.192,3417.5,3416.0,0.464074]
[1754178104949,5.192,3417.5,3416.1,0.4997]
[1754178105149,0.60647,3417.4,3416.1,0.4997]
[1754178105977,0.60647,3417.4,3416.2,0.4348]
[1754178106348,0.60647,3417.4,3416.3,0.4997]
[1754178106546,3.099,3418.8,3416.3,0.4997]
[1754178106547,5.182,3417.9,3416.9,0.1464]
[1754178106848,0.4541,3418.2,3416.9,0.6461]
[1754178107053,5.181,3418.1,3416.9,0.6461]
[1754178107275,0.4541,3418.2,3416.9,0.4997]
[1754178107475,0.1464,3417.9,3417.4,0.1464]
[1754178108350,0.4541,3418.2,3417.4,0.6461]
[1754178108555,0.1464,3418.6,3417.8,0.1464]
[1754178108797,5.174,3419.4,3417.4,0.55]
[1754178109091,0.1464,3418.9,3418.4,0.1464]
[1754178109302,0.6005,3418.9,3418.4,0.1464]
[1754178110304,0.1464,3418.9,3418.4,0.1464]
[1754178110477,0.4541,3418.8,3418.4,0.1464]
[1754178110891,0.1464,3418.9,3418.4,0.1464]
[1754178111493,0.6005,3418.9,3418.4,0.1464]
[1754178112056,0.1464,3418.9,3418.4,0.1464]
[1754178112481,0.1464,3419.0,3418.4,0.1464]
[1754178112816,0.72217,3419.0,3418.4,0.1464]
[1754178112989,0.4553,3418.9,3418.4,0.1464]
[1754178113288,0.8739,3418.9,3417.8,0.4997]
[1754178113487,0.1464,3418.0,3417.8,0.4997]
[1754178113993,0.6017,3418.0,3417.8,0.4997]
[1754178114194,0.1464,3418.0,3417.8,0.4997]
[1754178114361,0.4553,3417.9,3417.8,0.4997]
[1754178115162,0.8739,3417.9,3417.8,0.4997]
[1754178115480,1.49123,3417.9,3417.8,0.4997]
[1754178115873,1.49123,3417.9,3416.9,0.1464]
[1754178116195,0.1464,3417.0,3416.3,0.72291598]
[1754178116362,0.1464,3416.7,3416.2,0.1464]
[1754178116576,0.1464,3416.7,3416.2,0.6042]
[1754178116780,7.65133,3417.9,3416.3,0.95157143]
[1754178117000,5.2944,3417.3,3416.6,0.1464]
[1754178117315,5.2934,3417.3,3416.8,0.1464]
[1754178117613,0.1464,3417.3,3416.8,0.1464]
[1754178117914,5.2924,3417.3,3416.9,0.4578]
[1754178118210,5.2924,3417.3,3417.0,0.4578]
[1754178118514,5.141,3417.4,3417.1,0.1464]
[1754178118729,0.4553,3417.3,3417.1,0.1464]
[1754178118877,5.138,3417.2,3417.1,0.1464]
[1754178119408,0.4553,3417.3,3416.4,0.4578]
[1754178119583,0.4553,3417.3,3416.5,0.1464]
[1754178119584,0.1464,3416.9,3416.5,0.1464]
[1754178119779,5.139,3417.5,3416.6,0.4578]
[1754178120010,0.1464,3417.2,3416.7,0.1464]
[1754178120873,0.1464,3417.2,3416.8,0.4578]
[1754178121077,0.1464,3417.2,3416.7,0.1464]
[1754178121312,0.1464,3417.2,3416.9,0.4578]
[1754178121515,7.034,3417.9,3417.0,0.4578]
[1754178121684,0.4553,3419.6,3417.1,0.95156458]
[1754178121894,30.0,3419.5,3417.2,0.9223]
[1754178122105,30.0,3419.5,3417.6,3.0]
[1754178122307,30.0,3419.5,3417.7,0.9223]
[1754178122620,30.0,3419.3,3417.8,0.4578]
[1754178123218,5.15,3419.2,3417.9,0.49375773]
[1754178123374,5.146,3419.5,3418.0,0.4578]
[1754178123580,30.0,3419.4,3418.1,0.49375601]
[1754178123830,30.0,3419.8,3418.2,3.4578]
[1754178124048,30.0,3419.8,3418.3,0.0292543]
[1754178124216,30.0,3419.8,3418.3,0.9515543]
[1754178124406,30.0,3419.9,3418.4,4.4723]
[1754178124596,30.0,3419.9,3418.6,3.0]
[1754178124938,30.0,3419.9,3418.7,0.9223]
[1754178125229,0.4553,3419.8,3418.2,1.13970659]
[1754178125450,30.0,3419.7,3418.2,0.21740659]
[1754178125746,30.0,3419.5,3418.1,0.4578]
[1754178126034,30.0,3419.3,3418.1,0.4578]
[1754178126190,0.4553,3419.2,3418.1,0.4578]
[1754178126920,0.4553,3419.2,3418.2,0.4645]
[1754178127120,0.86358461,3419.2,3418.2,0.4645]
[1754178127525,0.4553,3419.2,3418.3,0.0292543]
[1754178127874,5.135,3419.4,3418.4,0.4578]
[1754178128154,30.0,3419.3,3418.4,0.4578]
[1754178128498,5.13,3419.5,3418.5,0.4645]
[1754178128696,30.0,3419.4,3418.6,0.4578]
[1754178129342,30.0,3419.4,3418.2,0.4645]
[1754178129641,30.0,3419.4,3418.2,0.9223]
[1754178129642,30.0,3419.3,3418.2,0.9223]
[1754178130153,0.4553,3419.2,3418.2,0.4645]
[1754178130376,30.0,3419.9,3418.3,3.9515543]
[1754178130643,30.0,3419.7,3418.4,1.67871659]
[1754178130844,30.0,3419.9,3418.5,0.95155259]
[1754178131061,30.0,3419.7,3418.6,0.4578]
[1754178131414,30.0,3419.7,3418.7,0.81028]
[1754178131631,30.0,3419.7,3418.8,0.4578]
[1754178131911,30.0,3420.4,3419.6,0.1464]
[1754178132135,30.0,3420.4,3419.6,0.6042]
[1754178132343,30.0,3420.3,3420.1,0.1464]
[1754178132968,30.0,3420.1,3418.5,3.0]
[1754178133126,0.1464,3419.6,3419.1,0.1464]
[1754178133312,0.8739,3420.0,3417.8,0.4578]
[1754178133313,5.9979,3419.5,3417.8,0.4578]
[1754178133517,0.1464,3419.0,3418.5,0.1464]
[1754178133711,5.127,3419.2,3418.8,0.1464]
[1754178134213,5.127,3419.2,3418.6,0.4578]
[1754178134214,30.0,3419.3,3419.0,0.1464]
[1754178134413,0.4553,3419.2,3419.0,0.1464]
[1754178134642,5.126,3419.4,3419.0,0.1464]
[1754178134866,0.4553,3419.3,3419.0,0.1464]
[1754178135021,0.8739,3419.3,3416.9,0.4645]
[1754178135221,0.8739,3419.2,3417.3,0.4645]
[1754178135567,6.0099,3419.1,3417.3,0.22244542]
[1754178135839,6.0099,3419.1,3416.9,0.4578]
[1754178136021,5.136,3419.1,3416.9,0.4578]
[1754178136224,0.8739,3419.0,3416.9,0.4578]
[1754178136423,0.8739,3418.9,3416.9,0.4578]
[1754178136744,5.136,3419.1,3416.9,0.4578]
[1754178136745,1.443,3418.8,3416.9,0.4578]
[1754178137042,6.0029,3418.7,3416.9,0.9223]
[1754178137351,0.4553,3418.6,3416.9,0.9223]
[1754178137491,0.4553,3418.6,3416.9,0.4645]
[1754178137695,5.129,3418.5,3417.0,0.48706543]
[1754178137893,0.8739,3418.4,3417.0,0.4578]
[1754178138909,0.4186,3418.4,3417.0,0.4578]
[1754178139109,0.8739,3418.3,3416.9,0.21626943]
[1754178139309,1.24172461,3418.2,3416.6,0.87955]
[1754178139606,0.8739,3418.1,3416.6,1.1036058]
[1754178139815,0.4553,3418.0,3416.6,1.1036058]
[1754178140035,0.4553,3418.0,3416.7,0.15614058]
[1754178141016,0.4186,3417.9,3416.9,0.002]
[1754178141400,0.4553,3417.8,3416.9,0.002]
[1754178141942,5.113,3418.0,3416.9,0.4598]
[1754178142148,5.112,3418.0,3416.9,0.4598]
[1754178142365,7.033,3418.7,3417.0,0.02926543]
[1754178142649,5.9919,3418.6,3416.9,0.4598]
[1754178142835,5.112,3418.6,3416.9,0.4598]
[1754178143139,0.8799,3418.5,3416.9,0.4598]
[1754178143343,0.59919,3418.4,3416.9,0.4598]
[1754178143525,0.4186,3418.3,3416.9,0.4598]
[1754178143740,0.8799,3418.3,3416.9,0.4598]
[1754178144249,0.55,3420.0,3417.0,2.92654375]
[1754178144559,0.004,3420.2,3417.0,2.92654375]
[1754178144560,30.0,3419.7,3417.4,3.55]
[1754178144713,30.0,3419.7,3418.1,3.55]
[1754178144906,30.0,3419.7,3419.3,0.1464]
[1754178145106,30.0,3420.1,3419.4,0.4701]
[1754178145339,0.004,3420.2,3419.4,0.878903]
[1754178145646,30.0,3420.1,3419.7,0.1464]
[1754178146142,0.1464,3419.8,3419.3,0.1464]
[1754178146455,0.4613,3419.7,3419.3,0.1464]
[1754178146740,0.004,3420.2,3419.4,0.4701]
[1754178146916,0.1504,3420.2,3419.6,0.1464]
[1754178149001,0.8799,3420.1,3419.6,0.1464]
[1754178149340,0.8799,3420.0,3419.6,0.1464]
[1754178149544,0.1464,3419.8,3419.3,0.1464]
[1754178149907,0.6077,3419.8,3419.3,0.1464]
[1754178150336,0.8799,3419.7,3419.3,0.1464]
[1754178150546,0.57787,3420.2,3418.9,0.879075]
[1754178150547,0.1464,3419.4,3418.9,0.879075]
[1754178150725,0.1464,3419.4,3417.5,1.58075514]
[1754178150726,0.1464,3419.1,3417.5,1.58075514]
[1754178150928,0.4613,3419.3,3417.6,0.96266029]
[1754178151241,0.1464,3419.1,3418.6,0.1464]
[1754178151442,0.1464,3418.7,3418.2,0.1464]
[1754178151644,0.4613,3418.6,3417.7,0.68435809]
[1754178151843,0.4613,3418.6,3418.1,0.1464]
[1754178152616,0.1464,3418.7,3418.1,0.1464]
[1754178152816,5.103,3419.4,3418.2,0.4701]
[1754178153064,0.6077,3419.5,3419.0,0.1464]
[1754178153216,0.8799,3419.4,3418.2,0.4701]
[1754178153414,0.1464,3419.1,3418.6,0.1464]
[1754178153641,0.8799,3419.0,3418.6,0.1464]
[1754178153856,0.1464,3418.7,3418.1,0.1464]
[1754178154157,0.4613,3418.9,3417.8,0.62647231]
[1754178154372,0.4613,3418.9,3418.4,0.1464]
[1754178154373,0.1464,3418.9,3418.4,0.1464]
[1754178154579,0.1464,3418.9,3417.9,0.9334]
[1754178154580,0.1464,3419.2,3418.7,0.1464]
[1754178155043,0.4613,3419.1,3418.7,0.1464]
[1754178155242,0.1464,3419.2,3418.7,0.1464]
[1754178155441,0.1464,3419.1,3418.8,0.4701]
[1754178155682,0.1464,3419.1,3418.6,0.1464]
[1754178155981,0.4613,3419.0,3417.9,0.4701]
[1754178156141,0.1464,3418.9,3418.4,0.1464]
[1754178156340,0.4613,3418.8,3417.9,0.4701]
[1754178156651,0.1464,3418.6,3418.1,1.025788]
[1754178157077,0.8799,3418.5,3418.1,1.025788]
[1754178157251,0.5104,3419.9,3417.7,0.21425809]
[1754178157252,0.1464,3418.2,3417.7,0.21425809]
[1754178157447,0.1464,3417.9,3417.4,0.6568]
[1754178157652,0.1464,3417.7,3417.3,0.1464]
[1754178157848,0.4613,3417.6,3417.3,0.1464]
[1754178158049,0.1464,3417.4,3417.2,0.6568]
[1754178158556,0.1464,3417.4,3417.2,0.87672497]
[1754178158737,0.4613,3417.3,3416.9,0.002]
[1754178159062,0.1464,3417.1,3416.9,0.002]
[1754178159857,0.1464,3417.5,3417.0,0.6165]
[1754178160240,0.1464,3417.5,3417.0,0.83385339]
[1754178161039,0.1464,3417.5,3417.0,0.36375339]
[1754178161234,0.4613,3417.4,3417.0,0.36375339]
[1754178161474,0.8799,3417.8,3417.0,0.21735339]
[1754178161774,0.1464,3417.2,3416.9,0.002]
[1754178162561,0.4613,3417.8,3417.0,0.4701]
[1754178162770,0.1464,3417.4,3417.0,0.4701]
[1754178163173,0.4613,3417.8,3417.0,0.22504615]
[1754178163380,0.1464,3417.3,3416.9,0.002]
[1754178164163,5.088,3418.3,3416.9,0.002]
[1754178164164,0.4613,3418.3,3417.0,0.9334]
[1754178164368,0.4613,3418.3,3417.2,0.1464]